Cogmind - Beta 15 @@@ ROGUE MODE // 2025.09.03 @ 21:52:34 Player: Bolche Result: Destroyed by Y-45 Defender with Heavy Assault Rifle Performance ------------- Evolutions (2) 1000 Regions Visited (4) 800 Robots Destroyed (20) 100 Value Destroyed (578) 578 Prototype IDs (4) 80 Alien Tech Used (0) 0 Bonus (80) 80 TOTAL SCORE: 2638 Bonus ------- Follower Combat Kills 80 Cogmind --------- Core Integrity 0/550 Matter 244/300 Energy 60/100 System Corruption 0% Temperature Cool (63) Movement Core (300) Ox5 Location -8/Materials Parts ------- > --- POWER (1) -------- (None) > --- PROPULSION (4) --- (None) > --- UTILITY (4) ------ Medium Storage Unit > --- WEAPON (2) ------- Gatling Laser Gauss Rifle > --- INVENTORY (10) --- Light Ion Engine Large Storage Unit Weight Redist. System Improved Terrain Scanner Terrain Scan Processor Hardened Light Armor Plating Shock Rifle Beam Rifle Beam Rifle Peak State ------------ > --- POWER ------------ Light Ion Engine > --- PROPULSION ------- Carbon-fiber Leg > --- UTILITY ---------- Medium Storage Unit Improved Sensor Array Advanced Targeting Computer Hardened Light Armor Plating > --- WEAPON ----------- Pulse Rifle Ion Cannon > --- INVENTORY -------- Light Ion Engine Large Storage Unit Weight Redist. System Improved Terrain Scanner Terrain Scan Processor Hardened Light Armor Plating Shock Rifle Beam Rifle Beam Rifle [Rating: 20] Favorites ----------- Power Light Ion Engine Engine Light Ion Engine Power Core Light Nuclear Core Propulsion Aluminum Leg Leg Aluminum Leg Utility Small Storage Unit Device Improved Sensor Array Storage Small Storage Unit Processor Advanced Targeting Computer Protection Hardened Light Armor Plating Weapon EM Pulse Gun Energy Gun EM Pulse Gun Energy Cannon Ion Cannon Ballistic Gun Assault Rifle Build | -11 -10 -10 -9 -8 ------- Run | Yrd Mat Min Mat Mat Slots Evolved 4 | . . . 2 2 Power . | . . . . . Propulsion 2 | . . . 1 1 Utility 2 | . . . 1 1 Weapon . | . . . . . Parts Attached 26 | 6 1 2 6 11 Power 4 | 1 . 1 1 1 Engine 3 | 1 . . 1 1 Core 1 | . . 1 . . Reactor . | . . . . . Propulsion 3 | 2 . . . 1 Treads . | . . . . . Leg 3 | 2 . . . 1 Wheel . | . . . . . Hover . | . . . . . Flight . | . . . . . Utility 9 | 1 1 . 3 4 Device 2 | . . . 2 . Storage 3 | 1 . . . 2 Processor 1 | . . . . 1 Hackware . | . . . . . Protection 3 | . 1 . 1 1 Artifact . | . . . . . Weapon 10 | 2 . 1 2 5 Energy Gun 6 | 2 . 1 1 2 Energy Cannon 1 | . . . . 1 Ballistic Gun 3 | . . . 1 2 Ballistic Cannon . | . . . . . Launcher . | . . . . . Special Weapon . | . . . . . Impact Weapon . | . . . . . Slashing Weapon . | . . . . . Piercing Weapon . | . . . . . Special Melee Weapon . | . . . . . Unidentified Prototypes . | . . . . . Parts Lost 14 | . . 1 3 10 Power 3 | . . . 1 2 Propulsion 3 | . . . 1 2 Utility 4 | . . . 1 3 Weapon 4 | . . 1 . 3 Highest Loss Streak 6 | . . 1 2 6 To Critical Strikes . | . . . . . Average Backups 6 | 1 2 4 7 9 Power 1 | . 1 1 2 1 Propulsion . | . . . . . Utility 2 | . . . 3 4 Weapon 2 | . 1 3 2 3 Tool/Special . | . . . . . Unused Backups 8 | . . . . 8 Power . | . . . . . Propulsion . | . . . . . Utility 4 | . . . . 4 Weapon 4 | . . . . 4 Tool/Special . | . . . . . Average Slot Usage (%) 74 | . 86 100 77 61 Engine 7 | . 14 9 6 6 Core 1 | . . 4 3 . Leg 15 | . 28 28 15 6 Device 6 | . . . 11 7 Storage 10 | . 14 14 11 9 Processor 3 | . . . . 7 Protection 7 | . 1 14 7 7 Energy Gun 17 | . 28 28 14 12 Energy Cannon 1 | . . . . 3 Ballistic Gun 2 | . . . 7 . Peak Build Rating 20 | 6 7 10 14 20 Average Rating 11 | 4 6 7 11 15 On Entrance 7 | . 6 7 9 13 Naked Turns . | . . . . . Heaviest Build 40 | 12 15 18 20 40 Greatest Support 20 | 20 20 20 20 15 Greatest Overweight (x) 8 | 1 . . 1 8 Average Overweight (x) . | . . . . 2 Largest Inventory Capacity 15 | 8 8 8 8 15 Average Capacity 8 | 7 8 8 8 10 Most Carried 10 | 2 4 7 8 10 Average Carried 6 | 1 2 4 7 9 Final Capacity 10 | 8 8 8 8 10 Final Carried 9 | 2 4 7 8 9 Class Distribution -------------------- 100% | Mutant Dominant Class ---------------- Mutant | -10/Materials Mutant | -10/Mines Mutant | -9/Materials Mutant | -8/Materials Resources | -11 -10 -10 -9 -8 ----------- Run | Yrd Mat Min Mat Mat Matter Collected 457 | 209 61 10 107 70 Remotely . | . . . . . Salvage Created 628 | . 75 96 169 288 Parts 36 | . 4 4 12 16 Haulers Intercepted . | . . . . . Recyclers Shooed 1 | . 1 . . . Parts Field Recycled . | . . . . . Retrieved Matter . | . . . . . Parts Self-Destructed . | . . . . . Prevented . | . . . . . Kills | -11 -10 -10 -9 -8 ------- Run | Yrd Mat Min Mat Mat Combat Hostiles Destroyed 14 | . 2 2 4 6 Guns 8 | . 1 1 4 2 Cannons 4 | . . . . 4 AOE 2 | . 1 1 . . Classes Destroyed 8 | . 3 1 3 1 Worker 2 | . 1 1 . . Mechanic 1 | . . . 1 . Operator 1 | . 1 . . . Watcher 2 | . . . 2 . Swarmer 4 | . 2 . 2 . Grunt 4 | . . 2 . 2 Sentry 4 | . . . 2 2 Hunter 2 | . . . . 2 Best Kill Streak 3 | . 3 3 2 3 Combat Bots Only 3 | . 2 2 1 3 Max Kills in Single Turn 2 | . 2 2 1 1 Gunslinging . | . . . . . Exploded 1 | . 1 1 . . Melee . | . . . . . Uniques/NPCs Destroyed . | . . . . . Combat | -11 -10 -10 -9 -8 -------- Run | Yrd Mat Min Mat Mat Hostile Shots Fired 206 | . 24 . 53 129 Missed 53 | . 7 . 15 31 Hits 153 | . 17 . 38 98 Projectile 153 | . 17 . 38 98 AOE 3 | . . 2 . 1 Critical Strikes 6 | . . . 2 4 Damage Taken 2245 | . 159 74 428 1584 Core 648 | . 27 . 68 553 Absorbed by Shields . | . . . . . Core Remaining (%) 90 | 100 . 89 83 . Volleys Fired 67 | . 13 2 25 27 Largest 2 | . 2 2 2 2 Hottest 123 | . 80 80 121 123 Shots Fired 127 | . 26 4 50 47 Gun 110 | . 26 4 50 30 Cannon 17 | . . . . 17 Launcher . | . . . . . Special . | . . . . . Kinetic 28 | . . . 19 9 Thermal 69 | . . . 31 38 Explosive . | . . . . . Electromagnetic 30 | . 26 4 . . Robot Hit Streak 11 | . 2 1 4 11 Robot Miss Streak 7 | . 7 2 3 3 Penetration Max 1 | . . . . 1 Secondary Targets . | . . . . . Shots Hit Robots 71 | . 9 1 28 33 Core Hits 32 | . 4 3 11 14 Critical Kills . | . . . . . Critical Parts Destroyed 1 | . . . 1 . Critical Strikes 6 | . 1 . 3 2 Burn 4 | . . . 2 2 Destroy 1 | . . . 1 . Corrupt 1 | . 1 . . . Melee Attacks . | . . . . . Impact . | . . . . . Slashing . | . . . . . Piercing . | . . . . . Sneak Attacks . | . . . . . Combat Hostiles . | . . . . . Follow-up Attacks . | . . . . . Damage Inflicted 1558 | . 266 87 421 784 Guns 1089 | . 156 27 421 485 Cannons 298 | . . . . 298 Explosions 167 | . 107 60 . . Melee . | . . . . . Ramming 4 | . 3 . . 1 Kinetic 342 | . . . 143 199 Thermal 1029 | . 107 60 278 584 Explosive . | . . . . . Electromagnetic 183 | . 156 27 . . Impact . | . . . . . Slashing . | . . . . . Piercing . | . . . . . Highest Corruption . | . . . . . Average Corruption . | . . . . . Corruption Purged . | . . . . . Corruption Blocked . | . . . . . Overload Shots . | . . . . . Overflow Damage 8 | . 8 . . . Projectiles . | . . . . . Explosions 8 | . 8 . . . Melee . | . . . . . Knockbacks . | . . . . . Impact . | . . . . . Kinetic . | . . . . . Secondary . | . . . . . Self-Inflicted Damage . | . . . . . Shots . | . . . . . Rammed 1 | . . . . 1 Targets Rammed 2 | . 1 . . 1 Kicked 1 | . 1 . . . Crushed . | . . . . . Highest Temperature 366 | . 72 27 366 297 Average Temperature 92 | . 34 16 116 99 Received Heat Transfer 795 | . 24 . 150 621 Siege Activations . | . . . . . Martial Activations . | . . . . . Shielding Activations . | . . . . . Robots Disrupted . | . . . . . Combat Hostiles . | . . . . . Robots Corrupted . | . . . . . Combat Hostiles . | . . . . . Parts Fried 1 | . 1 . . . Impact Corruptions . | . . . . . Robots Melted . | . . . . . Combat Hostiles . | . . . . . Parts Melted 5 | . . 1 3 1 Heat Transferred 2238 | . 50 100 814 1274 Parts Sabotaged . | . . . . . Parts Stolen . | . . . . . Parts Stripped . | . . . . . Power Chain Reactions 2 | . 1 1 . . Alert | -11 -10 -10 -9 -8 ------- Run | Yrd Mat Min Mat Mat Maximum Alert Level . | . . . . . Low Security (%) 100 | 100 100 100 100 100 Level 1 . | . . . . . Level 2 . | . . . . . Level 3 . | . . . . . Level 4 . | . . . . . Level 5 . | . . . . . High Security . | . . . . . Max Security . | . . . . . Peak Influence 97 | . 58 66 97 69 Initial 10 | . . 10 1 9 Average 20 | . 14 23 35 12 Influence Increases 571 | . 70 66 249 186 Destroy 0b10 Robot/C 360 | . 40 40 160 120 Destroy 0b10 Robot/NC 30 | . 10 5 15 . Destroy Leader 124 | . 10 10 54 50 Allied During Kill 23 | . . 8 15 . Successful Hack 12 | . 7 . 5 . Disable Machine 15 | . . . . 15 Destroy Structure 7 | . 3 3 . 1 Influence Decreases 559 | . 42 88 231 198 Entered New Map 38 | . . 18 5 15 Time Decay 343 | . 42 40 156 105 Lost Part 118 | . . 10 30 78 Lost Ally 60 | . . 20 40 . Squads Dispatched 3 | . 1 . 1 1 Investigation 2 | . 1 . . 1 Extermination . | . . . . . Reinforcement 1 | . . . 1 . Assault . | . . . . . Garrison . | . . . . . Intercept . | . . . . . Searches Triggered . | . . . . . Construction Impeded . | . . . . . Haulers Reinforced . | . . . . . Active Scanning Responses . | . . . . . Cargo Convoy Interrupts . | . . . . . Stealth | -11 -10 -10 -9 -8 --------- Run | Yrd Mat Min Mat Mat Distress Signals 3 | . . 1 2 . Communications Jammed . | . . . . . Distress Signals . | . . . . . Times Spotted 36 | . 10 4 12 10 Peak Tracking Total 4 | . 4 2 3 4 Tactical Retreats . | . . . . . Traps | -11 -10 -10 -9 -8 ------- Run | Yrd Mat Min Mat Mat Traps Triggered 1 | . . . . 1 Indirectly . | . . . . . Trap Hack Attempts . | . . . . . Triggered . | . . . . . Disarmed . | . . . . . Reprogrammed . | . . . . . Reused . | . . . . . Traps Extracted . | . . . . . Installed . | . . . . . Triggered . | . . . . . Machines | -11 -10 -10 -9 -8 ---------- Run | Yrd Mat Min Mat Mat Machines Disabled 1 | . . . . 1 Max in Single Turn 1 | . . . . 1 Machines Repaired . | . . . . . Machines Dismantled . | . . . . . Machines Sabotaged . | . . . . . Overloaded Fab Kills . | . . . . . Hacking | -11 -10 -10 -9 -8 --------- Run | Yrd Mat Min Mat Mat Machines Accessed 8 | . 3 . 3 2 Terminals 8 | . 3 . 3 2 Fabricators . | . . . . . Repair Stations . | . . . . . Recycling Units . | . . . . . Scanalyzers . | . . . . . Garrison Access . | . . . . . Total Hacks 11 | . 5 . 4 2 Successful 4 | . 3 . 1 . Failed 7 | . 2 . 3 2 Catastrophic 1 | . . . 1 . Database Lockouts . | . . . . . Manual 3 | . . . 3 . Terminals 11 | . 5 . 4 2 Fabricators . | . . . . . Repair Stations . | . . . . . Recycling Units . | . . . . . Scanalyzers . | . . . . . Garrison Access . | . . . . . Terminal Hacks 4 | . 3 . 1 . Record 1 | . 1 . . . Prototype ID Bank 2 | . 2 . . . Zone Layout 1 | . . . 1 . Fabricator Hacks . | . . . . . Repair Station Hacks . | . . . . . Recycling Unit Hacks . | . . . . . Scanalyzer . | . . . . . Garrison Access Hacks . | . . . . . Unauthorized Hacks . | . . . . . Terminals . | . . . . . Fabricators . | . . . . . Repair Stations . | . . . . . Recycling Units . | . . . . . Scanalyzers . | . . . . . Garrison Access . | . . . . . Data Cores Recovered 1 | . 1 . . . Used 1 | . 1 . . . Hacking Detections 3 | . 1 . 2 . Full Trace Events . | . . . . . Feedback Events . | . . . . . Feedback Blocked . | . . . . . Robot Schematics Acquired . | . . . . . Robots Built . | . . . . . Authchips . | . . . . . Time . | . . . . . Total Robot Build Rating . | . . . . . Part Schematics Acquired . | . . . . . Parts Built . | . . . . . Authchips . | . . . . . Time . | . . . . . Total Part Build Rating . | . . . . . Parts Repaired . | . . . . . Time . | . . . . . Parts Recycled . | . . . . . Recycled Matter . | . . . . . Retrieved Matter . | . . . . . Retrieved Components . | . . . . . Parts Scanalyzed . | . . . . . Part Schematics Acquired . | . . . . . Parts Damaged . | . . . . . Bothacking | -11 -10 -10 -9 -8 ------------ Run | Yrd Mat Min Mat Mat Used RIF Installer . | . . . . . Robots Hacked . | . . . . . Non-combat . | . . . . . Combat . | . . . . . Robot Hacks Applied . | . . . . . Relay Couplers Released . | . . . . . Fabnet Peak Effective % . | . . . . . Robots Rewired . | . . . . . Allies Hacked . | . . . . . Hacks Repelled . | . . . . . Allies | -11 -10 -10 -9 -8 -------- Run | Yrd Mat Min Mat Mat Total Allies 3 | . . 3 . . Largest Group 3 | . . 3 2 . Highest-Rated Group 40 | . . 40 24 . Highest-Rated Ally 16 | . . 16 16 . Total Orders . | . . . . . Ally Attacks 36 | . . 10 26 . Total Damage 334 | . . 89 245 . Kills 4 | . . . 4 . Allies Corrupted . | . . . . . Allies Melted . | . . . . . Intel | -11 -10 -10 -9 -8 ------- Run | Yrd Mat Min Mat Mat Active Infowar (turns) 751 | . . . 315 436 Sensors 751 | . . . 315 436 Robot Analysis Total . | . . . . . Derelict Logs Recovered . | . . . . . Drone Launches . | . . . . . Drone Recoveries . | . . . . . Exploration | -11 -10 -10 -9 -8 ------------- Run | Yrd Mat Min Mat Mat Turns Passed 1294 | 57 180 146 387 524 Spaces Moved 622 | 39 114 113 193 163 Core 38 | 6 . . . 32 Treads . | . . . . . Legs 584 | 33 114 113 193 131 Wheels . | . . . . . Hover . | . . . . . Flight . | . . . . . Fastest Speed 50 | 50 120 120 120 190 Average Speed 167 | 120 120 120 155 259 Slowest Speed 450 | 190 120 120 190 450 Overloaded Moves . | . . . . . Propulsion Burnouts . | . . . . . Robots Hopped . | . . . . . Potential Cave-ins . | . . . . . Cave-ins Triggered . | . . . . . Exploration Rate (%) 19 | 4 23 28 26 16 Regions Visited 4 Branch Regions 1 Pre-discovered Areas . | . . . . . Known Exits Taken . | . . . . . Unknown Exits Taken 4 | 1 1 1 1 . Scrap Searched . | . . . . . Spaces Dug . | . . . . . Terrain Destroyed 7 | . 3 3 . 1 Melee . | . . . . . Projectile 1 | . . . . 1 AOE 6 | . 3 3 . . Terrain Rammed . | . . . . . Walls Destroyed . | . . . . . Machines Disabled . | . . . . . Actions | -11 -10 -10 -9 -8 --------- Run | Yrd Mat Min Mat Mat Total 740 | 46 130 118 231 215 Wait . | . . . . . Move 619 | 38 114 112 192 163 Hop . | . . . . . Pick Up 17 | 2 2 2 5 6 Fast Attach 15 | 6 1 . 3 5 Attach 5 | . . . 3 2 Detach 1 | . . . . 1 Swap 7 | . . 2 . 5 Drop 8 | . . . 3 5 Fire 67 | . 13 2 25 27 Melee . | . . . . . Ram 1 | . . . . 1 Kick . | . . . . . Crush . | . . . . . Escape Stasis . | . . . . . Rewire . | . . . . . Trap . | . . . . . Miscellaneous . | . . . . . Route ------- -11/Scrapyard -10/Materials -10/Mines (discovered 2 exits: *Mat x2) -9/Materials -8/Materials History --------- Turn | Location | Event 5 | -11/Scrapyard | Discovered new exit (range 15) 58 | -11/Scrapyard | Entered Materials 205 | -10/Materials | Discovered new exit (range 8) 238 | -10/Materials | Entered Mines 238 | -10/Mines | Discovered new exit (range 10) 253 | -10/Mines | Assisted by bots powering up and referring to "LRC-V3" 255 | -10/Mines | Met a Derelict bent on vengeance 312 | -10/Mines | Build established: Mutant 345 | -10/Mines | Discovered new exit (range 7) 346 | -10/Mines | Assembled infested the area 384 | -10/Mines | Entered Materials 384 | -9/Materials | Accompanied by 2 allies 384 | -9/Materials | Evolved 2 slots: Propulsion x1, Utility x1 628 | -9/Materials | Discovered new exit (range 16) 771 | -9/Materials | Entered another Materials area 771 | -8/Materials | Evolved 2 slots: Propulsion x1, Utility x1 1254 | -8/Materials | Lost 6 parts (1p1n2u2w) 1262 | -8/Materials | Core integrity fell below 50% 1274 | -8/Materials | Core integrity fell below 20% 1295 | -8/Materials | Destroyed by Y-45 Defender with Heavy Assault Rifle Last Messages --------------- Slammed into G-47 Trooper. K-01 Serf collects debris. Acquired Gauss Rifle. Slug penetrates G-47 Trooper. K-01 Serf collects debris. Slug penetrates G-47 Trooper. K-01 Serf collects debris. Slug penetrates G-47 Trooper. Critical hit (Burn: +37). Acquired Gatling Laser. Slug penetrates Y-45 Defender. Slug penetrates K-01 Serf. Adv. Targeting Computer destroyed. Gauss Rifle destroyed. G-47 Trooper destroyed. Acquired Gauss Rifle. K-01 Serf collects debris. R-06 Scavenger collects Aluminum Leg. Critical hit (Burn: +37). K-01 Serf collects debris. Map ----- +----------------------------------------------------+ | ????????????????????????????# """ + / #??? | | ????????????????????????????# """ # # #??? | | ????????????????????????????# """ # # #??? | | ????????????????????????????# ] # ########??? | | ????????????????????????????# [ [### #?????????? | | ????????????????????????????########?# #?????????? | | ?????????????????????????????????????# #?????????? | | ?????????????????????????????????????# #?????????? | | ?????????????????????????????????????# #?????????? | | ???????????????????????????????####### #?????????? | | ???????????????????????????######## ## #######???? | | ???????????????????????????# % # ] #???? | | ???????????????????????????# ! # [ #???? | | ???????????????????????????# # #???? | | ???????????????????????????# # #???? | | ???????????????????????????# # #???? | | ???????????????????????????# + ! #???? | | ?????????????????""????????# # !! #???? | | ?????????????????? ???????# # + " | | ?????????????????? ""??####### #/# # # | | ????????????????? S"" ## ######%### !! ##### | | ????????????????? "" / !! | | ???????????????????????# km !! | | ???????????????????????# r%#######+#########+## | | ???????????????????????# Yg #### #???????? | | ???????????????????????# @ ## % "" #????????? | | ???????????????????????#[ ]]## %"""" #????????? | | ???????????????????????#[[[[]]## %"""" #????????? | | ???????????????????????######### % "" #????????? | | ???????????????????????????????# ! " #????????? | | ???????????????????????????????#= #????????? | | ???????????????????????????????# #????????? | | ???????????????????????????????# ! #????????? | | ???????????????????????????????##########????????? | | ?????????????????????????????????????????????????? | | | | | | | | | | | | | | | | | | | | | | | | | | | | | | | +----------------------------------------------------+ Best States ------------- Heat Dissipation 38 Energy Generation 14 Energy Capacity 160 Matter Stores 300 Matter Capacity 300 Sight Range 16 Robot Scan Range 15 Terrain Scan Density 10 Armor Coverage 300 Evasion (%) 55 Targeting Accuracy 8 Item Schematics ----------------- None Robot Schematics ------------------ None Fabricated ------------ Nothing Repaired ---------- Nothing Alien Tech Used ----------------- None Achievements -------------- Dynamic Key Challenges ------------ None Game ------ Seed IntegratedThrusterPurifier Manual? 0 Play Time 00:24:37 Cumulative 6.8 hours Start 2025.09.03 @ 21:31:37 End 2025.09.03 @ 21:52:34 Sessions 1 Manual Loads 0 Difficulty Rogue Special Mode None Game No. 16 Rogue 10 Adventurer 6 Explorer 0 Win Type - Total 0 Types 0/0/0/0/0/0/0/0/0/0 Lore% 4 Gallery% 9 Achievement% 8 Wizard Run 0 Options --------- Layout 1 ASCII 0 Keyboard 1 Movement Numpad Keybinds 1 Fullscreen 2 Font 24/Smallcaps Map View 50x35 Zoom Use 0% Tactical HUD 0 Map Filters NONE Filters NONE Steam 1 RUN: 0889b9de-3502-4f46-8519-8ca41bd0c958